[Event "*** Titled Tuesday Blitz"]
[Site "Chess.com"]
[Date "2019.04.02"]
[Round "3"]
[White "Beawuids"]
[Black "olksuna"]
[Result "0-1"]
[WhiteElo "2354"]
[BlackElo "2508"]
[TimeControl "180+2"]
[EndTime "14:35:23 PDT"]
[Termination "olksuna won by resignation"]

1. e4 {[%clk 0:03:00.9]} 1... c5 {[%clk 0:03:00.2]} 2. Nf3 {[%clk 0:03:01.8]}
2... Nc6 {[%clk 0:03:01.5]} 3. d4 {[%clk 0:03:01.4]} 3... cxd4 {[%clk
0:03:02.6]} 4. Nxd4 {[%clk 0:03:03.3]} 4... Nf6 {[%clk 0:03:03.7]} 5. Nc3 {[%clk
0:03:02.4]} 5... e5 {[%clk 0:03:04.7]} 6. Ndb5 {[%clk 0:03:03.3]} 6... d6 {[%clk
0:03:05.6]} 7. Bg5 {[%clk 0:03:04.2]} 7... a6 {[%clk 0:03:06.6]} 8. Na3 {[%clk
0:03:05]} 8... b5 {[%clk 0:03:07.5]} 9. Bxf6 {[%clk 0:03:05.3]} 9... gxf6 {[%clk
0:03:09.4]} 10. Nd5 {[%clk 0:03:06.2]} 10... f5 {[%clk 0:03:05.6]} 11. Bd3
{[%clk 0:03:07.1]} 11... Be6 {[%clk 0:02:58]} 12. Nxb5 {[%clk 0:03:06.7]} 12...
axb5 {[%clk 0:02:55.2]} 13. Bxb5 {[%clk 0:03:07.4]} 13... Rc8 {[%clk 0:02:40.9]}
14. c3 {[%clk 0:02:38.2]} 14... Be7 {[%clk 0:01:26.1]} 15. Qa4 {[%clk
0:02:03.1]} 15... Bd7 {[%clk 0:01:24.5]} 16. exf5 {[%clk 0:02:01.4]} 16... O-O
{[%clk 0:01:23.1]} 17. O-O {[%clk 0:01:55.4]} 17... Nb8 {[%clk 0:01:21.2]} 18.
Qg4+ {[%clk 0:01:30.9]} 18... Kh8 {[%clk 0:01:21]} 19. Bd3 {[%clk 0:01:31.8]}
19... Bf6 {[%clk 0:01:07.8]} 20. f4 {[%clk 0:01:18.8]} 20... Nc6 {[%clk
0:00:58.4]} 21. Rad1 {[%clk 0:00:52.9]} 21... exf4 {[%clk 0:00:44.8]} 22. Qxf4
{[%clk 0:00:53.8]} 22... Ne5 {[%clk 0:00:43.7]} 23. Be4 {[%clk 0:00:46]} 23...
Rc4 {[%clk 0:00:39.1]} 24. b3 {[%clk 0:00:43.5]} 24... Bg5 {[%clk 0:00:39.2]}
25. bxc4 {[%clk 0:00:27.7]} 25... Bxf4 {[%clk 0:00:37.9]} 26. Rxf4 {[%clk
0:00:28.8]} 26... Rg8 {[%clk 0:00:21.7]} 27. f6 {[%clk 0:00:28.5]} 27... Rg4
{[%clk 0:00:21.8]} 28. Rxg4 {[%clk 0:00:21.3]} 28... Bxg4 {[%clk 0:00:23.7]} 29.
Ne7 {[%clk 0:00:22.3]} 29... Bxd1 {[%clk 0:00:21.5]} 0-1

[Event "*** Titled Tuesday Blitz"]
[Site "Chess.com"]
[Date "2019.04.02"]
[Round "3"]
[White "Dare-Dare"]
[Black "Martins-BR"]
[Result "1-0"]
[WhiteElo "2140"]
[BlackElo "2261"]
[TimeControl "180+2"]
[EndTime "14:35:25 PDT"]
[Termination "Dare-Dare won by resignation"]

1. Nf3 {[%clk 0:03:01.9]} 1... f5 {[%clk 0:02:59.6]} 2. c4 {[%clk 0:03:01.8]}
2... Nf6 {[%clk 0:02:59.6]} 3. Nc3 {[%clk 0:03:02.7]} 3... g6 {[%clk 0:03:00.1]}
4. g3 {[%clk 0:03:01.9]} 4... Bg7 {[%clk 0:03:00.8]} 5. Bg2 {[%clk 0:03:03.4]}
5... O-O {[%clk 0:03:01.8]} 6. O-O {[%clk 0:03:04.6]} 6... d6 {[%clk 0:03:02.9]}
7. b3 {[%clk 0:03:05.9]} 7... e5 {[%clk 0:03:02]} 8. d3 {[%clk 0:03:06.6]} 8...
e4 {[%clk 0:02:54.1]} 9. Ne1 {[%clk 0:03:05]} 9... exd3 {[%clk 0:02:47.4]} 10.
exd3 {[%clk 0:03:03.5]} 10... Nc6 {[%clk 0:02:47.2]} 11. Bb2 {[%clk 0:03:04]}
11... Ng4 {[%clk 0:02:40.2]} 12. Nc2 {[%clk 0:02:58.8]} 12... Nd4 {[%clk
0:02:24.4]} 13. Nxd4 {[%clk 0:02:56.9]} 13... Bxd4 {[%clk 0:02:24.5]} 14. Qc2
{[%clk 0:02:53.2]} 14... c6 {[%clk 0:02:22.1]} 15. Ne2 {[%clk 0:02:49.6]} 15...
Bf6 {[%clk 0:02:17.1]} 16. h3 {[%clk 0:02:48.3]} 16... Ne5 {[%clk 0:02:11.8]}
17. Nd4 {[%clk 0:02:33.9]} 17... Bg7 {[%clk 0:02:05.2]} 18. Rae1 {[%clk
0:02:31.8]} 18... f4 {[%clk 0:02:02.1]} 19. gxf4 {[%clk 0:02:10.3]} 19... Rxf4
{[%clk 0:02:01.3]} 20. Ne2 {[%clk 0:02:10.7]} 20... Rh4 {[%clk 0:01:55.6]} 21.
f4 {[%clk 0:02:05.2]} 21... Nf7 {[%clk 0:01:53.6]} 22. Bxg7 {[%clk 0:02:05.1]}
22... Kxg7 {[%clk 0:01:53.3]} 23. Qc3+ {[%clk 0:01:59.3]} 23... Kg8 {[%clk
0:01:53.2]} 24. d4 {[%clk 0:01:58.6]} 24... Bf5 {[%clk 0:01:40.2]} 25. Qg3
{[%clk 0:01:55.2]} 25... Rh6 {[%clk 0:01:33.5]} 26. d5 {[%clk 0:01:45.1]} 26...
c5 {[%clk 0:01:26.5]} 27. Nc3 {[%clk 0:01:37.7]} 27... Qf6 {[%clk 0:01:19.6]}
28. Ne4 {[%clk 0:01:36.3]} 28... Qd4+ {[%clk 0:01:15.7]} 29. Kh2 {[%clk
0:01:32.9]} 29... Kf8 {[%clk 0:01:04]} 30. Ng5 {[%clk 0:01:30.7]} 30... Re8
{[%clk 0:00:57.2]} 31. Rxe8+ {[%clk 0:01:28.6]} 31... Kxe8 {[%clk 0:00:51.1]}
32. Re1+ {[%clk 0:01:26.5]} 32... Kf8 {[%clk 0:00:42.5]} 33. Ne6+ {[%clk
0:01:08.8]} 33... Bxe6 {[%clk 0:00:42.6]} 34. dxe6 {[%clk 0:01:10.7]} 34... Nh8
{[%clk 0:00:39.2]} 35. e7+ {[%clk 0:01:02.9]} 35... Ke8 {[%clk 0:00:29.5]} 36.
Qg4 {[%clk 0:01:02.3]} 1-0

[Event "*** Titled Tuesday Blitz"]
[Site "Chess.com"]
[Date "2019.04.02"]
[Round "3"]
[White "Eliwood44"]
[Black "WPWPWP-2015"]
[Result "0-1"]
[WhiteElo "2208"]
[BlackElo "2381"]
[TimeControl "180+2"]
[EndTime "14:35:35 PDT"]
[Termination "WPWPWP-2015 won by resignation"]

1. d4 {[%clk 0:03:01.9]} 1... Nf6 {[%clk 0:02:58.7]} 2. Nf3 {[%clk 0:03:00.7]}
2... d5 {[%clk 0:02:58.4]} 3. c4 {[%clk 0:03:00.7]} 3... c6 {[%clk 0:02:59.1]}
4. Qc2 {[%clk 0:03:01.3]} 4... dxc4 {[%clk 0:02:57.2]} 5. e4 {[%clk 0:02:59.9]}
5... b5 {[%clk 0:02:56]} 6. b3 {[%clk 0:03:00.4]} 6... cxb3 {[%clk 0:02:53.7]}
7. axb3 {[%clk 0:03:02.3]} 7... e6 {[%clk 0:02:51.8]} 8. Bd2 {[%clk 0:02:56.6]}
8... a5 {[%clk 0:02:48.7]} 9. Bd3 {[%clk 0:02:55.8]} 9... Na6 {[%clk 0:02:35.8]}
10. Qxc6+ {[%clk 0:02:39]} 10... Bd7 {[%clk 0:02:35]} 11. Qb7 {[%clk 0:02:31.7]}
11... Nb4 {[%clk 0:02:26]} 12. Bxb4 {[%clk 0:02:26]} 12... Bxb4+ {[%clk
0:02:24.7]} 13. Nbd2 {[%clk 0:02:27.4]} 13... Rb8 {[%clk 0:02:17.4]} 14. Qa6
{[%clk 0:02:24.3]} 14... Ra8 {[%clk 0:02:16.4]} 15. Qb7 {[%clk 0:02:23.9]} 15...
Rb8 {[%clk 0:02:17.3]} 16. Qa6 {[%clk 0:02:23.3]} 16... O-O {[%clk 0:02:18.2]}
17. O-O {[%clk 0:02:21.1]} 17... Ra8 {[%clk 0:01:52.5]} 18. Qb7 {[%clk
0:02:20.8]} 18... Rb8 {[%clk 0:01:51.5]} 19. Qa6 {[%clk 0:02:21.5]} 19... Bc8
{[%clk 0:01:38.3]} 20. Qa7 {[%clk 0:02:21.3]} 20... Nd7 {[%clk 0:01:36]} 21.
Rfc1 {[%clk 0:02:13.9]} 21... Rb7 {[%clk 0:01:33.7]} 22. Qa6 {[%clk 0:02:10.1]}
22... Rc7 {[%clk 0:01:29.3]} 23. Qa8 {[%clk 0:02:10.2]} 23... Nb6 {[%clk
0:01:22.8]} 24. Qb8 {[%clk 0:02:06]} 24... Rxc1+ {[%clk 0:00:48.6]} 25. Rxc1
{[%clk 0:02:07.9]} 25... Bxd2 {[%clk 0:00:49.5]} 26. Nxd2 {[%clk 0:02:05.9]}
26... Qxd4 {[%clk 0:00:50.2]} 27. Nf1 {[%clk 0:01:56.7]} 27... a4 {[%clk
0:00:31.1]} 28. bxa4 {[%clk 0:01:54.1]} 28... bxa4 {[%clk 0:00:31.2]} 29. Qg3
{[%clk 0:01:46.3]} 29... e5 {[%clk 0:00:26.2]} 30. Bb1 {[%clk 0:01:41.8]} 30...
Be6 {[%clk 0:00:16.8]} 31. Ne3 {[%clk 0:01:40.6]} 31... Qb2 {[%clk 0:00:16.6]}
32. Rf1 {[%clk 0:01:37.5]} 32... a3 {[%clk 0:00:17.3]} 33. Nf5 {[%clk
0:01:02.9]} 33... Bxf5 {[%clk 0:00:17.6]} 34. exf5 {[%clk 0:01:04.8]} 34... a2
{[%clk 0:00:08.2]} 35. Bxa2 {[%clk 0:01:05.8]} 35... Qxa2 {[%clk 0:00:09.1]} 36.
Qxe5 {[%clk 0:01:07.1]} 36... Qd5 {[%clk 0:00:05.3]} 37. Qc7 {[%clk 0:01:04.2]}
37... Nd7 {[%clk 0:00:05.8]} 38. Qf4 {[%clk 0:01:03]} 38... Nf6 {[%clk
0:00:06.7]} 39. h3 {[%clk 0:01:03.5]} 39... Qe4 {[%clk 0:00:06.2]} 40. Qg5
{[%clk 0:01:04.1]} 40... h6 {[%clk 0:00:06.7]} 41. Qd2 {[%clk 0:01:04.4]} 41...
Re8 {[%clk 0:00:07.6]} 42. Re1 {[%clk 0:01:06.3]} 42... Qxe1+ {[%clk 0:00:07.8]}
0-1

[Event "*** Titled Tuesday Blitz"]
[Site "Chess.com"]
[Date "2019.04.02"]
[Round "3"]
[White "AryanTari"]
[Black "Amirreza_p"]
[Result "1-0"]
[WhiteElo "2831"]
[BlackElo "2766"]
[TimeControl "180+2"]
[EndTime "14:35:48 PDT"]
[Termination "AryanTari won by resignation"]

1. Nf3 {[%clk 0:02:54.4]} 1... d5 {[%clk 0:03:00.7]} 2. g3 {[%clk 0:02:46.5]}
2... Bg4 {[%clk 0:03:01.5]} 3. Bg2 {[%clk 0:02:47.4]} 3... Nd7 {[%clk 0:03:03]}
4. d4 {[%clk 0:02:44.2]} 4... e6 {[%clk 0:03:02.6]} 5. h3 {[%clk 0:02:43.2]}
5... Bh5 {[%clk 0:02:52.1]} 6. O-O {[%clk 0:02:43.4]} 6... Be7 {[%clk
0:02:52.3]} 7. c4 {[%clk 0:02:40]} 7... c6 {[%clk 0:02:52.4]} 8. Qb3 {[%clk
0:02:24.5]} 8... Qb6 {[%clk 0:02:52.8]} 9. c5 {[%clk 0:02:13.4]} 9... Qxb3
{[%clk 0:02:53.4]} 10. axb3 {[%clk 0:02:15.3]} 10... a6 {[%clk 0:02:54.5]} 11.
Nc3 {[%clk 0:02:11.6]} 11... Ngf6 {[%clk 0:02:51.6]} 12. b4 {[%clk 0:02:12.3]}
12... Rc8 {[%clk 0:02:51.9]} 13. Nd2 {[%clk 0:02:11.8]} 13... O-O {[%clk
0:02:48.8]} 14. Nb3 {[%clk 0:02:12.6]} 14... Bd8 {[%clk 0:02:50.2]} 15. Bf4
{[%clk 0:02:07.6]} 15... Re8 {[%clk 0:02:50.3]} 16. Na5 {[%clk 0:01:48.1]} 16...
Bxa5 {[%clk 0:02:50.5]} 17. bxa5 {[%clk 0:01:48.4]} 17... e5 {[%clk 0:02:52]}
18. dxe5 {[%clk 0:01:47]} 18... Nxe5 {[%clk 0:02:53.5]} 19. Bxe5 {[%clk
0:01:45.6]} 19... Rxe5 {[%clk 0:02:50.6]} 20. g4 {[%clk 0:01:46.1]} 20... d4
{[%clk 0:02:42.8]} 21. Na4 {[%clk 0:01:22.2]} 21... Nxg4 {[%clk 0:02:35]} 22.
hxg4 {[%clk 0:01:23]} 22... Bxg4 {[%clk 0:02:36.9]} 23. Rfd1 {[%clk 0:01:19.4]}
23... Rd8 {[%clk 0:02:30.2]} 24. Bf3 {[%clk 0:01:06.3]} 24... Bf5 {[%clk
0:01:21]} 25. Rd2 {[%clk 0:01:04.7]} 25... Be6 {[%clk 0:01:18.1]} 26. Rad1
{[%clk 0:00:55]} 26... g6 {[%clk 0:01:03.8]} 27. Rxd4 {[%clk 0:00:53.3]} 27...
Rxd4 {[%clk 0:01:04.5]} 28. Rxd4 {[%clk 0:00:55.2]} 28... Bb3 {[%clk 0:01:05.8]}
29. Nc3 {[%clk 0:00:53]} 29... Rxc5 {[%clk 0:01:05.2]} 30. Rb4 {[%clk
0:00:54.6]} 30... Be6 {[%clk 0:00:51.3]} 31. Rxb7 {[%clk 0:00:55.2]} 31... Rg5+
{[%clk 0:00:51.8]} 32. Kf1 {[%clk 0:00:54.3]} 32... Rxa5 {[%clk 0:00:51.2]} 33.
Bxc6 {[%clk 0:00:53.6]} 33... Rc5 {[%clk 0:00:49]} 34. Bf3 {[%clk 0:00:50.5]}
34... Kg7 {[%clk 0:00:48.3]} 35. Rb6 {[%clk 0:00:51.5]} 35... a5 {[%clk
0:00:49.2]} 36. Rb5 {[%clk 0:00:52]} 36... Rxb5 {[%clk 0:00:44.8]} 37. Nxb5
{[%clk 0:00:53.9]} 37... Kf6 {[%clk 0:00:46.2]} 38. Nd6 {[%clk 0:00:53.5]} 38...
Ke5 {[%clk 0:00:38.4]} 39. Nb7 {[%clk 0:00:54.3]} 39... a4 {[%clk 0:00:34]} 40.
Nc5 {[%clk 0:00:55.1]} 40... Kd4 {[%clk 0:00:30.8]} 41. Nxa4 {[%clk 0:00:56]}
41... Kc4 {[%clk 0:00:32.3]} 42. Nb6+ {[%clk 0:00:53.8]} 42... Kb3 {[%clk
0:00:33.3]} 43. Bd5+ {[%clk 0:00:55.3]} 43... Kxb2 {[%clk 0:00:30]} 44. Bxe6
{[%clk 0:00:56.2]} 44... fxe6 {[%clk 0:00:31.9]} 45. Nd7 {[%clk 0:00:56.5]}
45... Kc3 {[%clk 0:00:33.8]} 46. Nf8 {[%clk 0:00:57.7]} 1-0

[Event "*** Titled Tuesday Blitz"]
[Site "Chess.com"]
[Date "2019.04.02"]
[Round "3"]
[White "PelinGorki"]
[Black "NikolaN98"]
[Result "1-0"]
[WhiteElo "2525"]
[BlackElo "2518"]
[TimeControl "180+2"]
[EndTime "14:35:48 PDT"]
[Termination "PelinGorki won by resignation"]

1. e4 {[%clk 0:03:01.9]} 1... c5 {[%clk 0:03:00.8]} 2. a3 {[%clk 0:03:03.3]}
2... e6 {[%clk 0:02:57.6]} 3. b4 {[%clk 0:03:04.1]} 3... cxb4 {[%clk 0:02:59.5]}
4. axb4 {[%clk 0:03:06]} 4... Bxb4 {[%clk 0:03:00.8]} 5. Bb2 {[%clk 0:03:07.6]}
5... Nf6 {[%clk 0:03:01.1]} 6. g4 {[%clk 0:03:08.6]} 6... h6 {[%clk 0:03:00.7]}
7. Bg2 {[%clk 0:03:06.3]} 7... Nc6 {[%clk 0:03:00.3]} 8. Ne2 {[%clk 0:03:07.3]}
8... d5 {[%clk 0:03:00.9]} 9. exd5 {[%clk 0:03:07]} 9... exd5 {[%clk 0:03:00.8]}
10. h3 {[%clk 0:03:08.1]} 10... Be6 {[%clk 0:03:01.3]} 11. O-O {[%clk
0:03:08.7]} 11... Qe7 {[%clk 0:03:00.5]} 12. Nbc3 {[%clk 0:03:09]} 12... O-O
{[%clk 0:02:59.3]} 13. Nb5 {[%clk 0:03:06.2]} 13... a6 {[%clk 0:02:51.8]} 14.
Nbd4 {[%clk 0:03:06.6]} 14... Nxd4 {[%clk 0:02:52.3]} 15. Nxd4 {[%clk
0:03:08.5]} 15... Rae8 {[%clk 0:02:52.2]} 16. Re1 {[%clk 0:03:06.5]} 16... Qd8
{[%clk 0:02:51.8]} 17. f4 {[%clk 0:02:35.5]} 17... Qb6 {[%clk 0:02:48.7]} 18.
Kh1 {[%clk 0:02:30.1]} 18... Bd7 {[%clk 0:02:43.2]} 19. Rb1 {[%clk 0:01:50.7]}
19... Qd6 {[%clk 0:02:23.2]} 20. Rf1 {[%clk 0:01:38.2]} 20... Ne4 {[%clk
0:02:13.2]} 21. Bxe4 {[%clk 0:01:32.5]} 21... Rxe4 {[%clk 0:02:13.9]} 22. Qf3
{[%clk 0:01:29.2]} 22... Bxd2 {[%clk 0:02:09.7]} 23. Nf5 {[%clk 0:01:26.2]}
23... Qxf4 {[%clk 0:01:22]} 24. Qg2 {[%clk 0:01:21.1]} 24... Qg5 {[%clk
0:01:20.2]} 25. Nxg7 {[%clk 0:01:21.6]} 25... Bxg4 {[%clk 0:01:12.6]} 26. Bf6
{[%clk 0:01:19.1]} 26... Qg6 {[%clk 0:00:52.9]} 27. hxg4 {[%clk 0:01:16.6]}
27... Rxg4 {[%clk 0:00:42.5]} 28. Qxd2 {[%clk 0:01:12.5]} 28... Qe4+ {[%clk
0:00:43.6]} 29. Kh2 {[%clk 0:01:10.7]} 29... Rc8 {[%clk 0:00:42.5]} 30. Rf2
{[%clk 0:01:06.5]} 30... Rc6 {[%clk 0:00:14.4]} 31. Nh5 {[%clk 0:00:55.6]} 31...
Rg6 {[%clk 0:00:10.3]} 32. Rg2 {[%clk 0:00:51.7]} 32... Kh7 {[%clk 0:00:07.6]}
33. Rf1 {[%clk 0:00:46.6]} 33... Re6 {[%clk 0:00:04.9]} 34. Rxg6 {[%clk
0:00:43.1]} 34... fxg6 {[%clk 0:00:05.5]} 35. Ng3 {[%clk 0:00:43.8]} 35... Qg4
{[%clk 0:00:05.9]} 36. Qxd5 {[%clk 0:00:40.2]} 36... h5 {[%clk 0:00:07.2]} 37.
Qd7+ {[%clk 0:00:38.8]} 1-0

[Event "*** Titled Tuesday Blitz"]
[Site "Chess.com"]
[Date "2019.04.02"]
[Round "3"]
[White "fidezivkovic"]
[Black "wannabe2700"]
[Result "1/2-1/2"]
[WhiteElo "2312"]
[BlackElo "2596"]
[TimeControl "180+2"]
[EndTime "14:35:48 PDT"]
[Termination "Game drawn by repetition"]

1. e4 {[%clk 0:03:01.9]} 1... e5 {[%clk 0:03:00.1]} 2. Nf3 {[%clk 0:03:00.7]}
2... Nf6 {[%clk 0:03:01.2]} 3. Nxe5 {[%clk 0:03:00.4]} 3... d6 {[%clk
0:03:02.3]} 4. Nf3 {[%clk 0:03:00.8]} 4... Nxe4 {[%clk 0:03:02.4]} 5. Nc3 {[%clk
0:03:01.2]} 5... Nxc3 {[%clk 0:03:00.4]} 6. dxc3 {[%clk 0:03:01.4]} 6... Be7
{[%clk 0:03:01.7]} 7. Be3 {[%clk 0:03:01.3]} 7... O-O {[%clk 0:03:03.6]} 8. Qd2
{[%clk 0:03:00.6]} 8... Nd7 {[%clk 0:03:05.5]} 9. O-O-O {[%clk 0:02:59.4]} 9...
Ne5 {[%clk 0:03:06.8]} 10. h4 {[%clk 0:02:51.1]} 10... Bg4 {[%clk 0:03:05.3]}
11. Be2 {[%clk 0:02:50.8]} 11... Nxf3 {[%clk 0:02:53.4]} 12. gxf3 {[%clk
0:02:51]} 12... Bh5 {[%clk 0:02:54.5]} 13. Rdg1 {[%clk 0:02:45.1]} 13... c6
{[%clk 0:02:40.9]} 14. Rg3 {[%clk 0:02:37.1]} 14... Bf6 {[%clk 0:02:35.3]} 15.
Rhg1 {[%clk 0:02:29.5]} 15... Kh8 {[%clk 0:02:34.9]} 16. Bg5 {[%clk 0:02:14.5]}
16... Rg8 {[%clk 0:02:33]} 17. Bd3 {[%clk 0:02:03.7]} 17... d5 {[%clk
0:02:30.1]} 18. Qf4 {[%clk 0:01:58.4]} 18... Bg6 {[%clk 0:01:54]} 19. Kd2 {[%clk
0:01:12.8]} 19... Qb8 {[%clk 0:01:23.9]} 20. Qxb8 {[%clk 0:01:00.3]} 20... Raxb8
{[%clk 0:01:25.8]} 21. Bxf6 {[%clk 0:00:55.4]} 21... gxf6 {[%clk 0:01:27.7]} 22.
f4 {[%clk 0:00:55.6]} 22... Bh5 {[%clk 0:01:06.3]} 23. Rxg8+ {[%clk 0:00:48.4]}
23... Rxg8 {[%clk 0:01:08.2]} 24. Rxg8+ {[%clk 0:00:48.3]} 24... Kxg8 {[%clk
0:01:10.1]} 25. Bf5 {[%clk 0:00:48.7]} 25... b6 {[%clk 0:00:59.9]} 26. Ke3
{[%clk 0:00:46.4]} 26... c5 {[%clk 0:00:48.8]} 27. Bd7 {[%clk 0:00:41.5]} 27...
Bd1 {[%clk 0:00:44.2]} 28. Bc6 {[%clk 0:00:41.4]} 28... Bxc2 {[%clk 0:00:35.9]}
29. Bxd5 {[%clk 0:00:41.6]} 29... h6 {[%clk 0:00:30.7]} 30. b4 {[%clk
0:00:38.5]} 30... Kf8 {[%clk 0:00:26.4]} 31. Kd2 {[%clk 0:00:27.6]} 31... Ba4
{[%clk 0:00:26.2]} 32. Ke3 {[%clk 0:00:23.2]} 32... Ke7 {[%clk 0:00:26.2]} 33.
Ke4 {[%clk 0:00:21.3]} 33... Bc2+ {[%clk 0:00:26.9]} 34. Kf3 {[%clk 0:00:21.4]}
34... Bd1+ {[%clk 0:00:26.4]} 35. Ke4 {[%clk 0:00:21.5]} 35... Bc2+ {[%clk
0:00:28]} 36. Kf3 {[%clk 0:00:21.9]} 36... Bd1+ {[%clk 0:00:29.1]} 37. Ke4
{[%clk 0:00:22.2]} 37... Bc2+ {[%clk 0:00:30.2]} 38. Kf3 {[%clk 0:00:22.6]}
38... Bd1+ {[%clk 0:00:30.6]} 1/2-1/2

[Event "*** Titled Tuesday Blitz"]
[Site "Chess.com"]
[Date "2019.04.02"]
[Round "3"]
[White "Raja3401"]
[Black "ALeks_Ivlev"]
[Result "1-0"]
[WhiteElo "2734"]
[BlackElo "2482"]
[TimeControl "180+2"]
[EndTime "14:35:50 PDT"]
[Termination "Raja3401 won by resignation"]

1. e4 {[%clk 0:03:01.9]} 1... e5 {[%clk 0:03:00.3]} 2. Nf3 {[%clk 0:03:03.3]}
2... Nc6 {[%clk 0:03:01.5]} 3. Bb5 {[%clk 0:03:04.9]} 3... a6 {[%clk 0:03:02.5]}
4. Ba4 {[%clk 0:03:06.4]} 4... Nf6 {[%clk 0:03:03.5]} 5. O-O {[%clk 0:03:08.1]}
5... b5 {[%clk 0:03:03.7]} 6. Bb3 {[%clk 0:03:09]} 6... Be7 {[%clk 0:03:05]} 7.
d3 {[%clk 0:03:09.1]} 7... d6 {[%clk 0:03:05.9]} 8. a3 {[%clk 0:03:09.3]} 8...
O-O {[%clk 0:03:06.4]} 9. Nc3 {[%clk 0:03:10.9]} 9... Na5 {[%clk 0:03:07.3]} 10.
Ba2 {[%clk 0:03:11.8]} 10... c5 {[%clk 0:03:08.7]} 11. b4 {[%clk 0:03:12.9]}
11... cxb4 {[%clk 0:03:03.9]} 12. axb4 {[%clk 0:03:14.8]} 12... Nc6 {[%clk
0:03:04.9]} 13. Nd5 {[%clk 0:03:16.7]} 13... Nxd5 {[%clk 0:03:00.5]} 14. Bxd5
{[%clk 0:03:18.6]} 14... Qc7 {[%clk 0:02:59]} 15. c3 {[%clk 0:03:19.4]} 15...
Be6 {[%clk 0:02:59.7]} 16. Qb3 {[%clk 0:03:10.8]} 16... Bxd5 {[%clk 0:02:59.4]}
17. Qxd5 {[%clk 0:02:56.9]} 17... Bf6 {[%clk 0:02:56.4]} 18. Bd2 {[%clk
0:02:57.3]} 18... Ne7 {[%clk 0:02:56.8]} 19. Qb3 {[%clk 0:02:57.9]} 19... Rfd8
{[%clk 0:02:51.4]} 20. Ra5 {[%clk 0:02:55.2]} 20... d5 {[%clk 0:02:49.7]} 21.
Rfa1 {[%clk 0:02:54.8]} 21... dxe4 {[%clk 0:02:48.3]} 22. dxe4 {[%clk
0:02:56.7]} 22... Qc6 {[%clk 0:02:47.3]} 23. Qc2 {[%clk 0:02:23.9]} 23... h6
{[%clk 0:02:46.7]} 24. h3 {[%clk 0:02:22.8]} 24... Rd6 {[%clk 0:02:44.8]} 25.
Be3 {[%clk 0:02:23.5]} 25... Ng6 {[%clk 0:02:35.9]} 26. Bc5 {[%clk 0:02:23.4]}
26... Re6 {[%clk 0:02:36.6]} 27. c4 {[%clk 0:02:23.9]} 27... bxc4 {[%clk
0:02:34.7]} 28. Qxc4 {[%clk 0:02:24.8]} 28... Kh7 {[%clk 0:02:34.3]} 29. g3
{[%clk 0:02:20.1]} 29... Bd8 {[%clk 0:02:21]} 30. R5a3 {[%clk 0:02:10.9]} 30...
Rf6 {[%clk 0:02:21.7]} 31. h4 {[%clk 0:02:06]} 31... Bc7 {[%clk 0:02:19.3]} 32.
Qd5 {[%clk 0:02:05.4]} 32... Qxd5 {[%clk 0:02:02.6]} 33. exd5 {[%clk 0:02:05.3]}
33... e4 {[%clk 0:02:03.9]} 34. Nd2 {[%clk 0:02:03.4]} 34... Be5 {[%clk
0:01:42.6]} 35. R1a2 {[%clk 0:01:57.7]} 35... e3 {[%clk 0:00:58.8]} 36. Rxe3
{[%clk 0:01:53.2]} 36... h5 {[%clk 0:00:46.9]} 37. Ne4 {[%clk 0:01:51.9]} 37...
Rf5 {[%clk 0:00:46.2]} 38. b5 {[%clk 0:01:51.2]} 38... a5 {[%clk 0:00:39]} 39.
b6 {[%clk 0:01:51.7]} 39... Bb8 {[%clk 0:00:35]} 40. Ng5+ {[%clk 0:01:49.3]}
40... Kh6 {[%clk 0:00:35.9]} 41. Re8 {[%clk 0:01:48.4]} 41... Rxd5 {[%clk
0:00:36]} 42. Nxf7+ {[%clk 0:01:45.1]} 42... Kh7 {[%clk 0:00:36]} 43. Ng5+
{[%clk 0:01:45.9]} 43... Kh6 {[%clk 0:00:30.9]} 44. b7 {[%clk 0:01:46.5]} 44...
Ra6 {[%clk 0:00:30.2]} 45. Nf7+ {[%clk 0:01:44.1]} 45... Kh7 {[%clk 0:00:30.8]}
46. Rxb8 {[%clk 0:01:45.8]} 46... Rxc5 {[%clk 0:00:28.5]} 47. Rc8 {[%clk
0:01:46.4]} 47... Rb5 {[%clk 0:00:25.3]} 48. b8=Q {[%clk 0:01:45.5]} 48... Rxb8
{[%clk 0:00:26.5]} 49. Rxb8 {[%clk 0:01:47.4]} 49... Ne7 {[%clk 0:00:27.8]} 50.
Ng5+ {[%clk 0:01:46.2]} 50... Kg6 {[%clk 0:00:27.3]} 51. Rb5 {[%clk 0:01:46.7]}
51... a4 {[%clk 0:00:27.8]} 52. Rb4 {[%clk 0:01:47.2]} 52... a3 {[%clk 0:00:26]}
53. Rb3 {[%clk 0:01:48.2]} 53... Rd6 {[%clk 0:00:25.7]} 54. Rbxa3 {[%clk
0:01:49.3]} 54... Kf5 {[%clk 0:00:27]} 55. Ra5+ {[%clk 0:01:49]} 55... Kg4
{[%clk 0:00:27.1]} 56. R2a4+ {[%clk 0:01:49.1]} 1-0

[Event "*** Titled Tuesday Blitz"]
[Site "Chess.com"]
[Date "2019.04.02"]
[Round "3"]
[White "eldur16"]
[Black "PulpanJ"]
[Result "1-0"]
[WhiteElo "2494"]
[BlackElo "2676"]
[TimeControl "180+2"]
[EndTime "14:35:51 PDT"]
[Termination "eldur16 won by checkmate"]

1. e4 {[%clk 0:03:01.9]} 1... e5 {[%clk 0:02:49.1]} 2. Nf3 {[%clk 0:03:02]} 2...
Nc6 {[%clk 0:02:45.6]} 3. Bb5 {[%clk 0:03:02.4]} 3... Nf6 {[%clk 0:02:42.7]} 4.
d3 {[%clk 0:03:02.1]} 4... Bc5 {[%clk 0:02:38.7]} 5. Bxc6 {[%clk 0:03:02.7]}
5... dxc6 {[%clk 0:02:39.5]} 6. Qe2 {[%clk 0:03:03.6]} 6... Nd7 {[%clk
0:02:36.4]} 7. Nc3 {[%clk 0:03:03.6]} 7... O-O {[%clk 0:02:36.8]} 8. Be3 {[%clk
0:03:02.3]} 8... Bd6 {[%clk 0:02:37.7]} 9. Nd2 {[%clk 0:02:57.4]} 9... Nc5
{[%clk 0:02:37.6]} 10. Nc4 {[%clk 0:02:56.5]} 10... Ne6 {[%clk 0:02:33.2]} 11.
g3 {[%clk 0:02:46.3]} 11... Nd4 {[%clk 0:02:29.1]} 12. Bxd4 {[%clk 0:02:44.3]}
12... exd4 {[%clk 0:02:31]} 13. Nb1 {[%clk 0:02:43.3]} 13... Be7 {[%clk
0:02:27.9]} 14. a4 {[%clk 0:02:37.9]} 14... f5 {[%clk 0:02:26.1]} 15. Nbd2
{[%clk 0:02:28.2]} 15... fxe4 {[%clk 0:02:24.4]} 16. Nxe4 {[%clk 0:02:26.9]}
16... Bh3 {[%clk 0:02:13.6]} 17. f4 {[%clk 0:02:25.7]} 17... Bb4+ {[%clk
0:02:10]} 18. c3 {[%clk 0:02:18.2]} 18... dxc3 {[%clk 0:02:11.1]} 19. bxc3
{[%clk 0:02:18.9]} 19... Be7 {[%clk 0:01:43.1]} 20. Ne5 {[%clk 0:02:07.5]} 20...
Bd6 {[%clk 0:01:41.1]} 21. Qa2+ {[%clk 0:01:52.7]} 21... Kh8 {[%clk 0:01:39]}
22. Nf7+ {[%clk 0:01:53.4]} 22... Rxf7 {[%clk 0:01:39.7]} 23. Qxf7 {[%clk
0:01:54.1]} 23... Bg2 {[%clk 0:01:24.6]} 24. Kf2 {[%clk 0:01:41.9]} 24... Bxh1
{[%clk 0:01:23]} 25. Rxh1 {[%clk 0:01:41.1]} 25... h6 {[%clk 0:01:24.1]} 26. Re1
{[%clk 0:01:36.2]} 26... a5 {[%clk 0:01:03.6]} 27. h4 {[%clk 0:01:31.4]} 27...
b5 {[%clk 0:00:41.2]} 28. axb5 {[%clk 0:01:23]} 28... cxb5 {[%clk 0:00:43.1]}
29. Qd5 {[%clk 0:01:23.3]} 29... Rb8 {[%clk 0:00:38.9]} 30. Ng5 {[%clk
0:01:10.3]} 30... hxg5 {[%clk 0:00:26]} 31. hxg5 {[%clk 0:01:10.7]} 31... Bc5+
{[%clk 0:00:25.8]} 32. Qxc5 {[%clk 0:01:10.8]} 32... Qxd3 {[%clk 0:00:27.7]} 33.
Qxc7 {[%clk 0:01:05.8]} 33... Rd8 {[%clk 0:00:19.4]} 34. g6 {[%clk 0:00:59]}
34... Qd2+ {[%clk 0:00:19.8]} 35. Re2 {[%clk 0:00:59.4]} 35... Qd5 {[%clk
0:00:19.9]} 36. Qe7 {[%clk 0:00:45.5]} 36... Kg8 {[%clk 0:00:10.8]} 37. Qe8+
{[%clk 0:00:44.1]} 37... Rxe8 {[%clk 0:00:04.4]} 38. Rxe8# {[%clk 0:00:43]} 1-0